OrganisationURI,OrganisationLabel,OrganisationalUnit,TransactionNumber,Invoice Ref.,BeneficiaryName,Expense Type,Purpose,PaymentDate, Amount 
http://statistics.data.gov.uk/id/local-authority-district/23UB,Cheltenham Borough Council,Art Gallery & Museum Repairs & Maintenance,14051918,192319,A & E Fire Equipment Limited,R2008-CUL117,R & M of Build - Reactive Repairs,07/04/2017,561.28 
http://statistics.data.gov.uk/id/local-authority-district/23UB,Cheltenham Borough Council,Cheltenham Municipal Offices,14052572,193609,A & E Fire Equipment Limited,R2008-ADB101,R & M of Build - Reactive Repairs,28/04/2017,523.23 
http://statistics.data.gov.uk/id/local-authority-district/23UB,Cheltenham Borough Council,Fire Protection,14052412,193640,A & E Fire Equipment Limited,C1107-CAH015,Building Works,21/04/2017,"5,253.00 "
http://statistics.data.gov.uk/id/local-authority-district/23UB,Cheltenham Borough Council,Cheltenham Depot,14051887,1030089,A1 Maintenance (Stroud) Limited,R2043-ADB103,R & M of Build Drain Cleaning,07/04/2017,"3,088.90 "
http://statistics.data.gov.uk/id/local-authority-district/23UB,Cheltenham Borough Council,Press & PR/Communications,14052526,SIN000579,Access Intelligence Media & Communications Limited,R4534-SUP018,IT - Maint Agreements,28/04/2017,"3,850.00 "
http://statistics.data.gov.uk/id/local-authority-district/23UB,Cheltenham Borough Council,Parks & Gardens Operations,14052429,110417,REDACTED,R2075-OPS001,Grounds Maintenance - Contract,21/04/2017,"1,500.00 "
http://statistics.data.gov.uk/id/local-authority-district/23UB,Cheltenham Borough Council,Cheltenham Municipal Offices,14052227,SOI0163886,AllCoopers Limited,R2705-ADB101,Security Systems,21/04/2017,502.80 
http://statistics.data.gov.uk/id/local-authority-district/23UB,Cheltenham Borough Council,Tenant Insurance Control,14052249,PREMIUM DECLARATION FOR THIS JAN- MAR 2017,AON Limited - Tenant Insurance,R9925-HRA901,Tenant Insurance Scheme Payments,13/04/2017,"8,073.03 "
http://statistics.data.gov.uk/id/local-authority-district/23UB,Cheltenham Borough Council,JCS Affordable Housing Capacity Funding,14052421,10340,Ark Consultancy Ltd,R4401-HOS100,Services - Fees and Charges,21/04/2017,750.00 
http://statistics.data.gov.uk/id/local-authority-district/23UB,Cheltenham Borough Council,Development Control - Applications,14052524,12169,Artful Limited,R4317-DEV001,Non Staff Advertising,28/04/2017,"2,095.60 "
http://statistics.data.gov.uk/id/local-authority-district/23UB,Cheltenham Borough Council,Cemetery & Crematorium Repairs & Maintenance,14052376,ATI020417,ATI Environment UK Limited,R4003-CCM111,Tools & Equipment - R & M,28/04/2017,"7,200.00 "
http://statistics.data.gov.uk/id/local-authority-district/23UB,Cheltenham Borough Council,Development costs - Garage Sites 2a,14052393,HS 46490,Baily Garner Health & Safety Ltd,C1107-CAH052,Building Works,21/04/2017,891.90 
http://statistics.data.gov.uk/id/local-authority-district/23UB,Cheltenham Borough Council,Development costs - Garage Sites 2a,14052392,HS 47580,Baily Garner Health & Safety Ltd,C1107-CAH052,Building Works,21/04/2017,595.00 
http://statistics.data.gov.uk/id/local-authority-district/23UB,Cheltenham Borough Council,Development costs - Garage Sites 2b,14052394,BH:50082 27304/ME/kkb,Baily Garner LLP,C1107-CAH054,Building Works,21/04/2017,502.87 
http://statistics.data.gov.uk/id/local-authority-district/23UB,Cheltenham Borough Council,Community Safety (Crime Reduction),14051749,54936,Bridgegate Security (GB) Limited,R4409-CCR001,Partnership Staff Fees,07/04/2017,"1,704.00 "
http://statistics.data.gov.uk/id/local-authority-district/23UB,Cheltenham Borough Council,Prince of Wales Stadium Repairs & Maintenance,14051761,976200451,British Gas Business (FOD -Gas Payments),R2101-REC112,Gas,07/04/2017,"2,105.95 "
http://statistics.data.gov.uk/id/local-authority-district/23UB,Cheltenham Borough Council,Oakley Resource Centre,14052528,997149056,British Gas Business (FOD -Gas Payments),R2101-COM101,Gas,28/04/2017,902.98 
http://statistics.data.gov.uk/id/local-authority-district/23UB,Cheltenham Borough Council,Animal Control,14052036,800543977,Bromsgrove District Council,R4413-REG003,Dog Kennels Fees,07/04/2017,957.44 
http://statistics.data.gov.uk/id/local-authority-district/23UB,Cheltenham Borough Council,Animal Control,14052037,800544256,Bromsgrove District Council,R4413-REG003,Dog Kennels Fees,07/04/2017,702.23 
http://statistics.data.gov.uk/id/local-authority-district/23UB,Cheltenham Borough Council,"Cemetery, Crematorium and Churchyards",14052470,26126050 A031,BT (Business Billing - Durham),R4514-CCM001,Comms - Telephone Rental/Service Charges,21/04/2017,"1,474.00 "
http://statistics.data.gov.uk/id/local-authority-district/23UB,Cheltenham Borough Council,Supervision and Management,14052034,Q014 0E,BT (Business Billing - Durham),R4515-HRA110,Comms - Telephone Call Charges,13/04/2017,685.35 
http://statistics.data.gov.uk/id/local-authority-district/23UB,Cheltenham Borough Council,Cheltenham Municipal Offices,14052202,08/296407,Bunzl Cleaning and Hygiene Supplies,R4009-ADB101,Materials - Cleaning Materials,21/04/2017,659.15 
http://statistics.data.gov.uk/id/local-authority-district/23UB,Cheltenham Borough Council,Development costs - Garage Sites 2c,14052059,RDG.0016.17,Butler Sherborn,C1107-CAH055,Building Works,07/04/2017,"4,598.00 "
http://statistics.data.gov.uk/id/local-authority-district/23UB,Cheltenham Borough Council,Sustainability Measures,14052112,INV-3432,Carbon Zero Consulting Limited,C1107-CAH032,Building Works,13/04/2017,"2,184.00 "
http://statistics.data.gov.uk/id/local-authority-district/23UB,Cheltenham Borough Council,Planning Policy,14052023,49056,Carrington West Limited,R1100-PLP001,Agency Staff,07/04/2017,"1,184.00 "
http://statistics.data.gov.uk/id/local-authority-district/23UB,Cheltenham Borough Council,Planning Policy,14052211,49506,Carrington West Limited,R1100-PLP001,Agency Staff,21/04/2017,"1,184.00 "
http://statistics.data.gov.uk/id/local-authority-district/23UB,Cheltenham Borough Council,Planning Policy,14052440,49862,Carrington West Limited,R1100-PLP001,Agency Staff,21/04/2017,"1,184.00 "
http://statistics.data.gov.uk/id/local-authority-district/23UB,Cheltenham Borough Council,Planning Policy,14052535,50200,Carrington West Limited,R1100-PLP001,Agency Staff,28/04/2017,"1,184.00 "
http://statistics.data.gov.uk/id/local-authority-district/23UB,Cheltenham Borough Council,"Cemetery, Crematorium and Churchyards",14052199,30087,CDK Castings Limited T/A Arkell & Hurcombe,R4011-CCM001,Goods For Resale,13/04/2017,612.00 
http://statistics.data.gov.uk/id/local-authority-district/23UB,Cheltenham Borough Council,Supervision and Management,14052206,DINV/00000066,Centigen Facilities Management Limited,R5011-HRA110,Minor Neighbourhood Works - Coronation Square Areas,21/04/2017,"1,120.00 "
http://statistics.data.gov.uk/id/local-authority-district/23UB,Cheltenham Borough Council,Cheltenham Business Improvement District (BID) Levy,14052428,CBID0024,Cheltenham Bid Limited,R4974-HLD160,Reimbursement to other L.A.'s,12/04/2017,"6,110.71 "
http://statistics.data.gov.uk/id/local-authority-district/23UB,Cheltenham Borough Council,Parks & Gardens Operations,14052022,15499,Cheltenham Surfacing Co Limited,R2075-OPS001,Grounds Maintenance - Contract,07/04/2017,"9,991.84 "
http://statistics.data.gov.uk/id/local-authority-district/23UB,Cheltenham Borough Council,Housing Enabling RSL & Housing Corporation,14052188,CBC/04042017/krw,Cheltenham YMCA,C5000-CAP228,Grants,28/04/2017,"313,765.14 "
http://statistics.data.gov.uk/id/local-authority-district/23UB,Cheltenham Borough Council,Housing Enabling RSL & Housing Corporation,14052188,CBC/04042017/krw,Cheltenham YMCA,C5000-CAP228,Grants,28/04/2017,"24,296.30 "
http://statistics.data.gov.uk/id/local-authority-district/23UB,Cheltenham Borough Council,Accountancy,14049831,3122898,CIPFA Business Limited,R4309-SUP009,Books,07/04/2017,520.00 
http://statistics.data.gov.uk/id/local-authority-district/23UB,Cheltenham Borough Council,Council Tax Collection,14052041,3125078,CIPFA Business Limited,R4701-LTC001,Subscriptions,07/04/2017,"1,118.34 "
http://statistics.data.gov.uk/id/local-authority-district/23UB,Cheltenham Borough Council,Housing Benefit Administration,14052041,3125078,CIPFA Business Limited,R4701-HBA001,Subscriptions,07/04/2017,"2,236.66 "
http://statistics.data.gov.uk/id/local-authority-district/23UB,Cheltenham Borough Council,Planning Policy,14052030,317,REDACTED,R1100-PLP001,Agency Staff,13/04/2017,639.87 
http://statistics.data.gov.uk/id/local-authority-district/23UB,Cheltenham Borough Council,SLA Single Advice Contract,14052127,1397A,County Community Projects (CCP),R6280-GBD103,Grants,07/04/2017,"63,750.00 "
http://statistics.data.gov.uk/id/local-authority-district/23UB,Cheltenham Borough Council,Structural / Damp Works,14051538,12741,Curtins Consulting Limited,C1005-CAH016,Surveyors Fees,07/04/2017,"2,000.00 "
http://statistics.data.gov.uk/id/local-authority-district/23UB,Cheltenham Borough Council,Structural / Damp Works,14052011,13154,Curtins Consulting Limited,C1107-CAH016,Building Works,07/04/2017,"2,525.00 "
http://statistics.data.gov.uk/id/local-authority-district/23UB,Cheltenham Borough Council,Income and Expenditure on Investment Properties and Changes in Their Fair Value,14051979,13645,CWS Engineering Limited,R2003-FIE040,R & M of Build Emergency Works,07/04/2017,"3,500.00 "
http://statistics.data.gov.uk/id/local-authority-district/23UB,Cheltenham Borough Council,Sports & Open Spaces Operations,14052169,17015,D A Jones Landscapes,R4003-OPS002,Tools & Equipment - R & M,07/04/2017,"1,050.00 "
http://statistics.data.gov.uk/id/local-authority-district/23UB,Cheltenham Borough Council,Parks & Gardens Operations,14052212,1197,D W Brookes (Resurfacing Limited),R2075-OPS001,Grounds Maintenance - Contract,13/04/2017,"2,855.00 "
http://statistics.data.gov.uk/id/local-authority-district/23UB,Cheltenham Borough Council,Sports & Open Spaces Operations,14052212,1197,D W Brookes (Resurfacing Limited),R4010-OPS002,Materials - Other Materials,13/04/2017,"2,405.00 "
http://statistics.data.gov.uk/id/local-authority-district/23UB,Cheltenham Borough Council,Parks & Gardens Operations,14052213,1198,D W Brookes (Resurfacing Limited),R2075-OPS001,Grounds Maintenance - Contract,13/04/2017,"1,582.00 "
http://statistics.data.gov.uk/id/local-authority-district/23UB,Cheltenham Borough Council,Repairs and Maintenance,14052183,34108,Dantek Environmental Services (UK) Limited,R2048-HRA100,R & M of Build Legionellla,13/04/2017,"8,180.00 "
http://statistics.data.gov.uk/id/local-authority-district/23UB,Cheltenham Borough Council,Art Gallery & Museum Repairs & Maintenance,14051738,12121,David Hartell Contracting,R2004-CUL117,R & M of Build Programmed,07/04/2017,"2,942.00 "
http://statistics.data.gov.uk/id/local-authority-district/23UB,Cheltenham Borough Council,Income and Expenditure on Investment Properties and Changes in Their Fair Value,14051615,260651,Devonshires Solicitors LLP,R4400-FIE040,Services - Professional Fees,07/04/2017,"1,833.00 "
http://statistics.data.gov.uk/id/local-authority-district/23UB,Cheltenham Borough Council,Income and Expenditure on Investment Properties and Changes in Their Fair Value,14051614,262007,Devonshires Solicitors LLP,R4400-FIE040,Services - Professional Fees,07/04/2017,"1,386.50 "
http://statistics.data.gov.uk/id/local-authority-district/23UB,Cheltenham Borough Council,Car Parks - Off Street R&M,14052092,163674,E.G. Carter & Co. Limited,R2004-CPK101,R & M of Build Programmed,13/04/2017,"29,881.26 "
http://statistics.data.gov.uk/id/local-authority-district/23UB,Cheltenham Borough Council,Phase 3 Development,14052118,106196,Edward Nash LLP T/A Nash Partnership,C1107-CAH039,Building Works,21/04/2017,"4,624.55 "
http://statistics.data.gov.uk/id/local-authority-district/23UB,Cheltenham Borough Council,Cemetery & Crematorium Repairs & Maintenance,14052498,170311,Elmbridge Carpentry,R2008-CCM111,R & M of Build - Reactive Repairs,28/04/2017,"3,300.00 "
http://statistics.data.gov.uk/id/local-authority-district/23UB,Cheltenham Borough Council,Sports & Open Spaces Repairs & Maintenance,14052326,170324,Elmbridge Carpentry,R2004-OPS122,R & M of Build Programmed,21/04/2017,"1,700.00 "
http://statistics.data.gov.uk/id/local-authority-district/23UB,Cheltenham Borough Council,Recreation Centre Repairs & Maintenance,14051430,301267/2/2017,Ener-G Combined Power (South) Limited,R2100-REC111,Electricity,07/04/2017,"3,217.84 "
http://statistics.data.gov.uk/id/local-authority-district/23UB,Cheltenham Borough Council,Recreation Centre Repairs & Maintenance,14052334,301267/3/2017,Ener-G Combined Power (South) Limited,R2100-REC111,Electricity,28/04/2017,"2,916.29 "
http://statistics.data.gov.uk/id/local-authority-district/23UB,Cheltenham Borough Council,Air Quality,14052184,23294,Enviro Technology Services plc,R4000-REG012,Equipment Purchase,13/04/2017,"7,800.00 "
http://statistics.data.gov.uk/id/local-authority-district/23UB,Cheltenham Borough Council,Recycling Centres,14052050,B01179024,Environment Agency,R4402-RYC004,Services - General Licences,13/04/2017,"2,717.00 "
http://statistics.data.gov.uk/id/local-authority-district/23UB,Cheltenham Borough Council,Asbestos Management,14052430,5867,Environmental Management Solutions Limited,C1107-CAH012,Building Works,21/04/2017,"26,397.50 "
http://statistics.data.gov.uk/id/local-authority-district/23UB,Cheltenham Borough Council,Oakley Resource Centre,14052416,H1447C934F,E-on Energy,R2100-COM101,Electricity,21/04/2017,"1,146.65 "
http://statistics.data.gov.uk/id/local-authority-district/23UB,Cheltenham Borough Council,External Improvements,14052224,17040019,G Purchase Construction Limited,C1107-CAH003,Building Works,21/04/2017,"23,337.74 "
http://statistics.data.gov.uk/id/local-authority-district/23UB,Cheltenham Borough Council,Trees,14052333,259,Gaskins Treework Specialists,R2070-PLP006,Tree Work,21/04/2017,"2,227.00 "
http://statistics.data.gov.uk/id/local-authority-district/23UB,Cheltenham Borough Council,Accountancy,14052133,16001,Gemini Consultants Limited,R4400-SUP009,Services - Professional Fees,21/04/2017,"5,791.17 "
http://statistics.data.gov.uk/id/local-authority-district/23UB,Cheltenham Borough Council,New Heating Installations,14048140,78142,Glevum Heating & Plumbing Limited,C1107-CAH009,Building Works,07/04/2017,"1,745.40 "
http://statistics.data.gov.uk/id/local-authority-district/23UB,Cheltenham Borough Council,Household Waste,14052165,1800441059,Gloucestershire County Council,R4400-WST001,Services - Professional Fees,13/04/2017,"7,583.34 "
http://statistics.data.gov.uk/id/local-authority-district/23UB,Cheltenham Borough Council,Land Charges,14052445,1800441733,Gloucestershire County Council,R4401-BUC004,Services - Fees and Charges,28/04/2017,"2,460.00 "
http://statistics.data.gov.uk/id/local-authority-district/23UB,Cheltenham Borough Council,Arle Road Nursery Repairs Maintenance,14052517,CBC/17/001,Greenhouse Repair Services,R2004-OPS111,R & M of Build Programmed,28/04/2017,"1,656.00 "
http://statistics.data.gov.uk/id/local-authority-district/23UB,Cheltenham Borough Council,Cemetery & Crematorium Repairs & Maintenance,14052221,3763,Greenway Partnership Limited T/A GPL Building Services,R2008-CCM111,R & M of Build - Reactive Repairs,21/04/2017,"5,127.40 "
http://statistics.data.gov.uk/id/local-authority-district/23UB,Cheltenham Borough Council,Public Conveniences,14052329,3825,Greenway Partnership Limited T/A GPL Building Services,R2083-REG019,R&M of Build - Routine,21/04/2017,"1,674.00 "
http://statistics.data.gov.uk/id/local-authority-district/23UB,Cheltenham Borough Council,Play areas enhancement,14052431,50759,HAGS-SMP Limited,C4000-CAP102,Acquisition of Equipment,21/04/2017,"1,439.20 "
http://statistics.data.gov.uk/id/local-authority-district/23UB,Cheltenham Borough Council,Play areas enhancement,14052552,50801,HAGS-SMP Limited,C4000-CAP102,Acquisition of Equipment,28/04/2017,"9,713.00 "
http://statistics.data.gov.uk/id/local-authority-district/23UB,Cheltenham Borough Council,Registration of Electors,14052025,10290,Halarose Limited,R4531-ELE001,IT - Purchase of Software,07/04/2017,522.51 
http://statistics.data.gov.uk/id/local-authority-district/23UB,Cheltenham Borough Council,District Elections,14052025,10290,Halarose Limited,R4531-ELE002,IT - Purchase of Software,07/04/2017,522.50 
http://statistics.data.gov.uk/id/local-authority-district/23UB,Cheltenham Borough Council,Flood Risk Management,14052509,52480,Halcrow Group Limited,R5001-FRM101,TPP - Major External Contractors,28/04/2017,983.62 
http://statistics.data.gov.uk/id/local-authority-district/23UB,Cheltenham Borough Council,Art Gallery & Museum Repairs & Maintenance,14052330,16042,Hellion Environmental Limited,R2008-CUL117,R & M of Build - Reactive Repairs,28/04/2017,965.00 
http://statistics.data.gov.uk/id/local-authority-district/23UB,Cheltenham Borough Council,Supervision and Management,14052336,SIAL/00025496,Herefordshire Housing Limited,R4445-HRA110,Communal Alarms - Monitoring & Maintenance,21/04/2017,555.75 
http://statistics.data.gov.uk/id/local-authority-district/23UB,Cheltenham Borough Council,Supervision and Management,14052345,SIAL/00025543,Herefordshire Housing Limited,R4445-HRA110,Communal Alarms - Monitoring & Maintenance,21/04/2017,526.50 
http://statistics.data.gov.uk/id/local-authority-district/23UB,Cheltenham Borough Council,Supervision and Management,14052529,SIAL/00026893,Herefordshire Housing Limited,R4445-HRA110,Communal Alarms - Monitoring & Maintenance,28/04/2017,572.00 
http://statistics.data.gov.uk/id/local-authority-district/23UB,Cheltenham Borough Council,Community Alarms,14052529,SIAL/00026893,Herefordshire Housing Limited,R4445-SPP002,Communal Alarms - Monitoring & Maintenance,28/04/2017,"12,664.08 "
http://statistics.data.gov.uk/id/local-authority-district/23UB,Cheltenham Borough Council,Supervision and Management,14052475,SIAL/00026894,Herefordshire Housing Limited,R4401-HRA110,Services - Fees and Charges,28/04/2017,"2,160.00 "
http://statistics.data.gov.uk/id/local-authority-district/23UB,Cheltenham Borough Council,General Fund Balance Sheet,14052427,CISDEDUCT0603-050417,HMRC (CBC - CIS),B6220-BAL100,CIS Deductions Control (reallocated),13/04/2017,"18,065.72 "
http://statistics.data.gov.uk/id/local-authority-district/23UB,Cheltenham Borough Council,Green Waste,14051448,22696,Hoge 100 Business Systems Limited,R4534-RYC002,IT - Maint Agreements,07/04/2017,"3,821.43 "
http://statistics.data.gov.uk/id/local-authority-district/23UB,Cheltenham Borough Council,Green Waste,14052167,22758,Hoge 100 Business Systems Limited,R4539-RYC002,IT - Consultancy,13/04/2017,"2,850.00 "
http://statistics.data.gov.uk/id/local-authority-district/23UB,Cheltenham Borough Council,Built Environment,14051996,107416,Idox Software Limited,R4534-SUP040,IT - Maint Agreements,28/04/2017,"58,138.87 "
http://statistics.data.gov.uk/id/local-authority-district/23UB,Cheltenham Borough Council,Car Parks - Off Street Operations,14051764,22530,Industrial Medical & Safety Services (IMASS) Limited,R4401-CPK001,Services - Fees and Charges,07/04/2017,556.67 
http://statistics.data.gov.uk/id/local-authority-district/23UB,Cheltenham Borough Council,Cemetery & Crematorium Repairs & Maintenance,14052403,999,James Brennan Surveyors Limited,R2004-CCM111,R & M of Build Programmed,21/04/2017,"4,600.00 "
http://statistics.data.gov.uk/id/local-authority-district/23UB,Cheltenham Borough Council,Play areas (Section 106),14052217,2094,Jayson R C Bayliss,C4000-CAP101,Acquisition of Equipment,21/04/2017,575.00 
http://statistics.data.gov.uk/id/local-authority-district/23UB,Cheltenham Borough Council,Play areas (Section 106),14052554,2095,Jayson R C Bayliss,C4000-CAP101,Acquisition of Equipment,28/04/2017,626.00 
http://statistics.data.gov.uk/id/local-authority-district/23UB,Cheltenham Borough Council,Car Parks - Off Street Operations,14050613,INV-0860,JS Security Limited,R4401-CPK001,Services - Fees and Charges,21/04/2017,"2,360.00 "
http://statistics.data.gov.uk/id/local-authority-district/23UB,Cheltenham Borough Council,Car Parks - Off Street Operations,14052462,INV-1049,JS Security Limited,R2705-CPK001,Security Systems,21/04/2017,826.00 
http://statistics.data.gov.uk/id/local-authority-district/23UB,Cheltenham Borough Council,Car Parks - Off Street Operations,14052462,INV-1049,JS Security Limited,R2705-CPK001,Security Systems,21/04/2017,540.00 
http://statistics.data.gov.uk/id/local-authority-district/23UB,Cheltenham Borough Council,Car Parks - Off Street Operations,14052462,INV-1049,JS Security Limited,R2705-CPK001,Security Systems,21/04/2017,826.00 
http://statistics.data.gov.uk/id/local-authority-district/23UB,Cheltenham Borough Council,Cheltenham Depot,14052461,INV-1050,JS Security Limited,R2705-ADB103,Security Systems,28/04/2017,"1,890.00 "
http://statistics.data.gov.uk/id/local-authority-district/23UB,Cheltenham Borough Council,Car Parks - Off Street Operations,14052460,INV-1052,JS Security Limited,R2705-CPK001,Security Systems,21/04/2017,826.00 
http://statistics.data.gov.uk/id/local-authority-district/23UB,Cheltenham Borough Council,Car Parks - Off Street Operations,14052460,INV-1052,JS Security Limited,R2705-CPK001,Security Systems,21/04/2017,572.00 
http://statistics.data.gov.uk/id/local-authority-district/23UB,Cheltenham Borough Council,Car Parks - Off Street Operations,14052460,INV-1052,JS Security Limited,R2705-CPK001,Security Systems,21/04/2017,826.00 
http://statistics.data.gov.uk/id/local-authority-district/23UB,Cheltenham Borough Council,Tourist/Visitor Information Centre,14052203,CBC11,REDACTED,R4400-TOU002,Services - Professional Fees,28/04/2017,"4,041.00 "
http://statistics.data.gov.uk/id/local-authority-district/23UB,Cheltenham Borough Council,Neighbourhood works,14052432,459721,Knights Professional Services Limited,C1107-CAH005,Building Works,13/04/2017,"2,975.00 "
http://statistics.data.gov.uk/id/local-authority-district/23UB,Cheltenham Borough Council,New Heating Installations,14052208,1187889,Liberty Gas Group,C1107-CAH009,Building Works,13/04/2017,"3,600.91 "
http://statistics.data.gov.uk/id/local-authority-district/23UB,Cheltenham Borough Council,Repairs and Maintenance,14052210,1187890,Liberty Gas Group,R2016-HRA100,R & M of Build Void Repairs,13/04/2017,"1,107.62 "
http://statistics.data.gov.uk/id/local-authority-district/23UB,Cheltenham Borough Council,Repairs and Maintenance,14052210,1187890,Liberty Gas Group,R2040-HRA100,R & M of Build Central Heating,13/04/2017,"42,026.54 "
http://statistics.data.gov.uk/id/local-authority-district/23UB,Cheltenham Borough Council,ICT,14052354,16000934,LinchPin Networks Limited,R4548-SUP005,IT - Cabling and Network,21/04/2017,"2,600.00 "
http://statistics.data.gov.uk/id/local-authority-district/23UB,Cheltenham Borough Council,ICT,14052355,16000935,LinchPin Networks Limited,R4548-SUP005,IT - Cabling and Network,21/04/2017,"1,599.50 "
http://statistics.data.gov.uk/id/local-authority-district/23UB,Cheltenham Borough Council,ICT,14052481,16000941,LinchPin Networks Limited,R4548-SUP005,IT - Cabling and Network,21/04/2017,"3,838.80 "
http://statistics.data.gov.uk/id/local-authority-district/23UB,Cheltenham Borough Council,Corporate Subscriptions,14052514,40152403,Local Government Association (LGA),R4701-DRM008,Subscriptions,28/04/2017,"10,450.00 "
http://statistics.data.gov.uk/id/local-authority-district/23UB,Cheltenham Borough Council,Corporate Subscriptions,14052476,8500503968,Manchester City Council,R4701-DRM008,Subscriptions,28/04/2017,750.00 
http://statistics.data.gov.uk/id/local-authority-district/23UB,Cheltenham Borough Council,Parks & Gardens Operations,14052038,4947LC,Martin Surgey T/A Lifechart,R4300-OPS001,Printing - Services,07/04/2017,695.00 
http://statistics.data.gov.uk/id/local-authority-district/23UB,Cheltenham Borough Council,Window & Door Renewals,14052218,FT_Inv00018092,Masterdor Limited,C1107-CAH017,Building Works,21/04/2017,"95,503.43 "
http://statistics.data.gov.uk/id/local-authority-district/23UB,Cheltenham Borough Council,Window & Door Renewals,14052219,FT_Inv00018093,Masterdor Limited,C1107-CAH017,Building Works,21/04/2017,"64,931.67 "
http://statistics.data.gov.uk/id/local-authority-district/23UB,Cheltenham Borough Council,Repairs and Maintenance,14051991,29676,Morgan Lambert Limited,R2040-HRA100,R & M of Build Central Heating,07/04/2017,"1,012.00 "
http://statistics.data.gov.uk/id/local-authority-district/23UB,Cheltenham Borough Council,External Improvements,14052106,1979,MPL Wrought Iron LLP,C1107-CAH003,Building Works,28/04/2017,"1,733.33 "
http://statistics.data.gov.uk/id/local-authority-district/23UB,Cheltenham Borough Council,Joint Core Strategy,14052240,CTG JCS 011,REDACTED,R4400-PLP101,Services - Professional Fees,21/04/2017,"1,375.99 "
http://statistics.data.gov.uk/id/local-authority-district/23UB,Cheltenham Borough Council,"Cemetery, Crematorium and Churchyards",14052187,310317,REDACTED,R4401-CCM001,Services - Fees and Charges,13/04/2017,806.62 
http://statistics.data.gov.uk/id/local-authority-district/23UB,Cheltenham Borough Council,Window & Door Renewals,14052223,17030423,Nationwide Windows Limited,C1107-CAH017,Building Works,21/04/2017,"234,707.54 "
http://statistics.data.gov.uk/id/local-authority-district/23UB,Cheltenham Borough Council,Window & Door Renewals,14052222,17030424,Nationwide Windows Limited,C1107-CAH017,Building Works,21/04/2017,"79,631.61 "
http://statistics.data.gov.uk/id/local-authority-district/23UB,Cheltenham Borough Council,Option Appraisal Voids,14052214,10359,NKS Contracts (Central) Limited,C1107-CAH002,Building Works,13/04/2017,"23,090.65 "
http://statistics.data.gov.uk/id/local-authority-district/23UB,Cheltenham Borough Council,Option Appraisal Voids,14052216,10360,NKS Contracts (Central) Limited,C1107-CAH002,Building Works,13/04/2017,"16,249.61 "
http://statistics.data.gov.uk/id/local-authority-district/23UB,Cheltenham Borough Council,Option Appraisal Voids,14052215,10361,NKS Contracts (Central) Limited,C1107-CAH002,Building Works,13/04/2017,"23,255.94 "
http://statistics.data.gov.uk/id/local-authority-district/23UB,Cheltenham Borough Council,Homelessness,14052226,REDACTED PN561,Northwood Cheltenham Limited,R6280-HOM001,Grants,13/04/2017,695.00 
http://statistics.data.gov.uk/id/local-authority-district/23UB,Cheltenham Borough Council,Supervision and Management,14052551,195253208 060417.,NPower,R2100-HRA110,Electricity,28/04/2017,604.93 
http://statistics.data.gov.uk/id/local-authority-district/23UB,Cheltenham Borough Council,Flood Risk Management,14052110,43741,Oconnor Construction Company Ltd,R5001-FRM101,TPP - Major External Contractors,21/04/2017,"8,180.00 "
http://statistics.data.gov.uk/id/local-authority-district/23UB,Cheltenham Borough Council,Cheltenham Municipal Offices,14051819,1262480,Otis Limited,R2010-ADB101,R & M of Plant Lifts,07/04/2017,"3,637.23 "
http://statistics.data.gov.uk/id/local-authority-district/23UB,Cheltenham Borough Council,Joint Core Strategy,14052396,427381,Ove Arup & Partners Limited,R4400-PLP101,Services - Professional Fees,21/04/2017,"2,975.00 "
http://statistics.data.gov.uk/id/local-authority-district/23UB,Cheltenham Borough Council,Recreation Centre Repairs & Maintenance,14051864,57701,P & R Heating Limited,R2080-REC111,Mechanical Services,07/04/2017,"1,856.52 "
http://statistics.data.gov.uk/id/local-authority-district/23UB,Cheltenham Borough Council,Prince of Wales Stadium Repairs & Maintenance,14051863,57702,P & R Heating Limited,R2080-REC112,Mechanical Services,07/04/2017,658.08 
http://statistics.data.gov.uk/id/local-authority-district/23UB,Cheltenham Borough Council,Town Hall Repairs & Maintenance,14052064,57923,P & R Heating Limited,R2080-CUL112,Mechanical Services,13/04/2017,"1,668.78 "
http://statistics.data.gov.uk/id/local-authority-district/23UB,Cheltenham Borough Council,Public Conveniences,14052074,57935,P & R Heating Limited,R2079-REG019,Sanitary and Plumbing,13/04/2017,612.00 
http://statistics.data.gov.uk/id/local-authority-district/23UB,Cheltenham Borough Council,Arle Road Nursery Repairs Maintenance,14052076,57944,P & R Heating Limited,R2008-OPS111,R & M of Build - Reactive Repairs,13/04/2017,"1,150.64 "
http://statistics.data.gov.uk/id/local-authority-district/23UB,Cheltenham Borough Council,Arle Road Nursery Repairs Maintenance,14052077,57945,P & R Heating Limited,R2004-OPS111,R & M of Build Programmed,13/04/2017,"3,408.00 "
http://statistics.data.gov.uk/id/local-authority-district/23UB,Cheltenham Borough Council,Prince of Wales Stadium Repairs & Maintenance,14052084,57953,P & R Heating Limited,R2080-REC112,Mechanical Services,13/04/2017,687.84 
http://statistics.data.gov.uk/id/local-authority-district/23UB,Cheltenham Borough Council,Income and Expenditure on Investment Properties and Changes in Their Fair Value,14052087,57957,P & R Heating Limited,R2004-FIE040,R & M of Build Programmed,13/04/2017,960.50 
http://statistics.data.gov.uk/id/local-authority-district/23UB,Cheltenham Borough Council,Cheltenham Depot,14052088,57958,P & R Heating Limited,R2080-ADB103,Mechanical Services,13/04/2017,"2,212.00 "
http://statistics.data.gov.uk/id/local-authority-district/23UB,Cheltenham Borough Council,Art Gallery & Museum Repairs & Maintenance,14052281,57994,P & R Heating Limited,R2008-CUL117,R & M of Build - Reactive Repairs,21/04/2017,798.05 
http://statistics.data.gov.uk/id/local-authority-district/23UB,Cheltenham Borough Council,Art Gallery & Museum Repairs & Maintenance,14052280,57996,P & R Heating Limited,R2008-CUL117,R & M of Build - Reactive Repairs,21/04/2017,528.00 
http://statistics.data.gov.uk/id/local-authority-district/23UB,Cheltenham Borough Council,Art Gallery & Museum Repairs & Maintenance,14052307,58007,P & R Heating Limited,R2080-CUL117,Mechanical Services,21/04/2017,"1,908.26 "
http://statistics.data.gov.uk/id/local-authority-district/23UB,Cheltenham Borough Council,Art Gallery & Museum Repairs & Maintenance,14052309,58008,P & R Heating Limited,R2008-CUL117,R & M of Build - Reactive Repairs,21/04/2017,"4,342.80 "
http://statistics.data.gov.uk/id/local-authority-district/23UB,Cheltenham Borough Council,Recreation Centre Repairs & Maintenance,14052220,58011,P & R Heating Limited,R2008-REC111,R & M of Build - Reactive Repairs,21/04/2017,928.00 
http://statistics.data.gov.uk/id/local-authority-district/23UB,Cheltenham Borough Council,Recreation Centre Repairs & Maintenance,14052300,58017,P & R Heating Limited,R2008-REC111,R & M of Build - Reactive Repairs,21/04/2017,"1,159.07 "
http://statistics.data.gov.uk/id/local-authority-district/23UB,Cheltenham Borough Council,Recreation Centre Repairs & Maintenance,14052301,58018,P & R Heating Limited,R2008-REC111,R & M of Build - Reactive Repairs,21/04/2017,550.00 
http://statistics.data.gov.uk/id/local-authority-district/23UB,Cheltenham Borough Council,Cheltenham Municipal Offices,14052260,58070,P & R Heating Limited,R2008-ADB101,R & M of Build - Reactive Repairs,21/04/2017,"1,134.41 "
http://statistics.data.gov.uk/id/local-authority-district/23UB,Cheltenham Borough Council,Car Parks - Off Street Operations,14051754,UK95855,Parkeon Limited,R4401-CPK001,Services - Fees and Charges,07/04/2017,"1,963.60 "
http://statistics.data.gov.uk/id/local-authority-district/23UB,Cheltenham Borough Council,Crematorium Scheme: New Build,14052166,44497,Pick Everard,C1005-CAP601,Surveyors Fees,07/04/2017,"5,481.00 "
http://statistics.data.gov.uk/id/local-authority-district/23UB,Cheltenham Borough Council,Night Time Levy,14052395,dbts00006212,Police and Crime Commissioner for Gloucestershire,R4402-REG024,Services - General Licences,21/04/2017,"30,861.00 "
http://statistics.data.gov.uk/id/local-authority-district/23UB,Cheltenham Borough Council,Environmental Health General,14052209,14661,Premier Employer Solutions Limited,R1100-REG001,Agency Staff,13/04/2017,"1,873.85 "
http://statistics.data.gov.uk/id/local-authority-district/23UB,Cheltenham Borough Council,Council Tax Collection,14052122,9054066420,Royal Mail,R4521-LTC001,Postages - franking machine,07/04/2017,896.08 
http://statistics.data.gov.uk/id/local-authority-district/23UB,Cheltenham Borough Council,Council Tax Collection,14052121,9054110165,Royal Mail,R4521-LTC001,Postages - franking machine,07/04/2017,585.09 
http://statistics.data.gov.uk/id/local-authority-district/23UB,Cheltenham Borough Council,Debtors,14052121,9054110165,Royal Mail,R4520-SUP012,Postages - stamps,07/04/2017,"1,492.64 "
http://statistics.data.gov.uk/id/local-authority-district/23UB,Cheltenham Borough Council,Council Tax Collection,14052120,9054154182,Royal Mail,R4521-LTC001,Postages - franking machine,07/04/2017,691.60 
http://statistics.data.gov.uk/id/local-authority-district/23UB,Cheltenham Borough Council,Green Waste,14052471,9054194073,Royal Mail,R4521-RYC002,Postages - franking machine,28/04/2017,547.55 
http://statistics.data.gov.uk/id/local-authority-district/23UB,Cheltenham Borough Council,Council Tax Collection,14052530,9054235128,Royal Mail,R4521-LTC001,Postages - franking machine,28/04/2017,604.31 
http://statistics.data.gov.uk/id/local-authority-district/23UB,Cheltenham Borough Council,Sandford Lido car park,14052389,SANDFORD LIDO MAR 17,Sandford Parks Lido (Trading) Limited,R5003-CPK103,TPP - Agency Fees,21/04/2017,"21,478.09 "
http://statistics.data.gov.uk/id/local-authority-district/23UB,Cheltenham Borough Council,Sandford Lido car park,14052389,SANDFORD LIDO MAR 17,Sandford Parks Lido (Trading) Limited,R5003-CPK103,TPP - Agency Fees,21/04/2017,"-1,683.33 "
http://statistics.data.gov.uk/id/local-authority-district/23UB,Cheltenham Borough Council,Repairs and Maintenance,14052046,942,SAS EPC,R2018-HRA100,R & M of Build Voids Energy Performance Certificates,28/04/2017,915.00 
http://statistics.data.gov.uk/id/local-authority-district/23UB,Cheltenham Borough Council,Car Park Income Collection,14052515,604351,Security Plus+ Limited,R4435-CPK002,Cash Collection Contract,28/04/2017,756.83 
http://statistics.data.gov.uk/id/local-authority-district/23UB,Cheltenham Borough Council,Recreation Centre Repairs & Maintenance,14051832,stw-INV00191516,Severn Trent Water,R2401-REC111,Water Services - Metered,07/04/2017,"2,048.42 "
http://statistics.data.gov.uk/id/local-authority-district/23UB,Cheltenham Borough Council,Prince of Wales Stadium Operations,14052246,stw-INV00216743,Severn Trent Water,R2400-REC102,Water Services - Unmetered,21/04/2017,"1,734.89 "
http://statistics.data.gov.uk/id/local-authority-district/23UB,Cheltenham Borough Council,Housing Standards,14051829,6874,Severn Wye Energy Agency Limited,R4401-HOS004,Services - Fees and Charges,07/04/2017,"1,000.00 "
http://statistics.data.gov.uk/id/local-authority-district/23UB,Cheltenham Borough Council,Allotments,14052116,S319786,Smith's (Gloucester) Limited,R2076-OPS004,Grounds Maintenance - Non Contract,07/04/2017,740.00 
http://statistics.data.gov.uk/id/local-authority-district/23UB,Cheltenham Borough Council,Repairs and Maintenance,14052378,21281,Snape Contracting Services Limited,R2024-HRA100,R & M of Build - Refurbishments,21/04/2017,"1,828.44 "
http://statistics.data.gov.uk/id/local-authority-district/23UB,Cheltenham Borough Council,Bulking Facility,14052156,119417,South Wales Wood Recycling Ltd,R5005-RYC008,TPP - Minor Contract Fees,13/04/2017,869.00 
http://statistics.data.gov.uk/id/local-authority-district/23UB,Cheltenham Borough Council,Bulking Facility,14052137,119447,South Wales Wood Recycling Ltd,R5005-RYC008,TPP - Minor Contract Fees,13/04/2017,"1,850.20 "
http://statistics.data.gov.uk/id/local-authority-district/23UB,Cheltenham Borough Council,Bulking Facility,14052138,119493,South Wales Wood Recycling Ltd,R5005-RYC008,TPP - Minor Contract Fees,13/04/2017,"2,827.00 "
http://statistics.data.gov.uk/id/local-authority-district/23UB,Cheltenham Borough Council,Bulking Facility,14052541,119575,South Wales Wood Recycling Ltd,R5005-RYC008,TPP - Minor Contract Fees,28/04/2017,891.00 
http://statistics.data.gov.uk/id/local-authority-district/23UB,Cheltenham Borough Council,Bulking Facility,14052542,119597,South Wales Wood Recycling Ltd,R5005-RYC008,TPP - Minor Contract Fees,28/04/2017,881.10 
http://statistics.data.gov.uk/id/local-authority-district/23UB,Cheltenham Borough Council,Corporate Subscriptions,14052152,64247,South West Councils,R4701-DRM008,Subscriptions,07/04/2017,"5,916.00 "
http://statistics.data.gov.uk/id/local-authority-district/23UB,Cheltenham Borough Council,Adaptations for the Disabled (CBC),14052483,REDACTED,Southern Care Systems,C1107-CAH028,Building Works,28/04/2017,"1,219.22 "
http://statistics.data.gov.uk/id/local-authority-district/23UB,Cheltenham Borough Council,Window & Door Renewals,14051718,F6221,Specialist Building Products Ltd (Wrekin Windows),C1107-CAH017,Building Works,07/04/2017,"120,187.93 "
http://statistics.data.gov.uk/id/local-authority-district/23UB,Cheltenham Borough Council,Window & Door Renewals,14052375,F6286,Specialist Building Products Ltd (Wrekin Windows),C1107-CAH017,Building Works,21/04/2017,"95,488.57 "
http://statistics.data.gov.uk/id/local-authority-district/23UB,Cheltenham Borough Council,Allotments,14052352,15833,Stokes & Sons Services Limited,R4010-OPS004,Materials - Other Materials,13/04/2017,"1,185.95 "
http://statistics.data.gov.uk/id/local-authority-district/23UB,Cheltenham Borough Council,Parks & Gardens Operations,14052513,150417,Stonearts,R2007-OPS001,R & M of Plant Contracts,28/04/2017,"4,892.00 "
http://statistics.data.gov.uk/id/local-authority-district/23UB,Cheltenham Borough Council,Sports & Open Spaces Operations,14052151,57508,Technical Rubber & Plastics Limited,R4000-OPS002,Equipment Purchase,07/04/2017,"1,870.00 "
http://statistics.data.gov.uk/id/local-authority-district/23UB,Cheltenham Borough Council,Income and Expenditure on Investment Properties and Changes in Their Fair Value,14051835,DEBT105463,Tewkesbury Borough Council,R4400-FIE040,Services - Professional Fees,28/04/2017,"1,049.50 "
http://statistics.data.gov.uk/id/local-authority-district/23UB,Cheltenham Borough Council,Development Control - Applications,14051833,DEBT105477,Tewkesbury Borough Council,R4400-DEV001,Services - Professional Fees,07/04/2017,"1,205.00 "
http://statistics.data.gov.uk/id/local-authority-district/23UB,Cheltenham Borough Council,Supervision and Management,14051989,DEBT105483,Tewkesbury Borough Council,R4420-HRA110,Legal Expenses And Court Costs,07/04/2017,"7,033.00 "
http://statistics.data.gov.uk/id/local-authority-district/23UB,Cheltenham Borough Council,Supervision and Management,14051989,DEBT105483,Tewkesbury Borough Council,R4420-HRA110,Legal Expenses And Court Costs,07/04/2017,922.00 
http://statistics.data.gov.uk/id/local-authority-district/23UB,Cheltenham Borough Council,Legal,14052016,DEBT105495,Tewkesbury Borough Council,R4420-SUP004,Legal Expenses And Court Costs,07/04/2017,"1,312.00 "
http://statistics.data.gov.uk/id/local-authority-district/23UB,Cheltenham Borough Council,Supervision and Management,14052436,DEBT105521,Tewkesbury Borough Council,R4420-HRA110,Legal Expenses And Court Costs,21/04/2017,"2,085.00 "
http://statistics.data.gov.uk/id/local-authority-district/23UB,Cheltenham Borough Council,Crematorium Scheme: New Build,14052451,PLANNING APPLICATION FEE,Tewkesbury Borough Council,C1005-CAP601,Surveyors Fees,19/04/2017,"10,395.00 "
http://statistics.data.gov.uk/id/local-authority-district/23UB,Cheltenham Borough Council,Cultural - Service Management and Support Services,14052145,70032449,The Cheltenham Trust,R5001-CSM001,TPP - Major External Contractors,13/04/2017,"152,779.20 "
http://statistics.data.gov.uk/id/local-authority-district/23UB,Cheltenham Borough Council,Cultural - Service Management and Support Services,14052534,70032986,The Cheltenham Trust,R5001-CSM001,TPP - Major External Contractors,28/04/2017,"108,076.66 "
http://statistics.data.gov.uk/id/local-authority-district/23UB,Cheltenham Borough Council,Community Alarms,14052150,72757,The Key Safe Company,R4000-SPP002,Equipment Purchase,07/04/2017,510.00 
http://statistics.data.gov.uk/id/local-authority-district/23UB,Cheltenham Borough Council,General Fund Balance Sheet,14052168,8.50028E+11,The Midcounties Co-operative,B6170-BAL100,Short Term Revenue Creditors (incl RIA) - Other entities and individuals,21/04/2017,"1,697.00 "
http://statistics.data.gov.uk/id/local-authority-district/23UB,Cheltenham Borough Council,Playhouse Theatre,14052237,PLAYHOUSE THEATRE GRANT,The Playhouse Theatre,R6280-CUL109,Grants,21/04/2017,"65,700.00 "
http://statistics.data.gov.uk/id/local-authority-district/23UB,Cheltenham Borough Council,Playhouse Theatre,14052237,PLAYHOUSE THEATRE GRANT,The Playhouse Theatre,R9404-CUL109,Rents - Other Property,21/04/2017,"-60,001.00 "
http://statistics.data.gov.uk/id/local-authority-district/23UB,Cheltenham Borough Council,Disabled Facility Grants,14052484,REDACTED,The Surveying Practice - Client Account,C5000-CAP221,Grants,28/04/2017,"5,028.65 "
http://statistics.data.gov.uk/id/local-authority-district/23UB,Cheltenham Borough Council,Adaptations for the Disabled (CBC),14052503,REDACTED,The Surveying Practice - Client Account,C1107-CAH028,Building Works,28/04/2017,"8,219.48 "
http://statistics.data.gov.uk/id/local-authority-district/23UB,Cheltenham Borough Council,Disabled Facility Grants,14052485,REDACTED,The Surveying Practice - Client Account,C5000-CAP221,Grants,28/04/2017,"22,970.56 "
http://statistics.data.gov.uk/id/local-authority-district/23UB,Cheltenham Borough Council,Disabled Facility Grants,14052486,REDACTED,The Surveying Practice - Client Account,C5000-CAP221,Grants,28/04/2017,"6,108.80 "
http://statistics.data.gov.uk/id/local-authority-district/23UB,Cheltenham Borough Council,"Cemetery, Crematorium and Churchyards",14052521,01/200001383,Travail Employment Group,R1100-CCM001,Agency Staff,28/04/2017,"1,023.76 "
http://statistics.data.gov.uk/id/local-authority-district/23UB,Cheltenham Borough Council,"Cemetery, Crematorium and Churchyards",14052527,01/200001453,Travail Employment Group,R1100-CCM001,Agency Staff,28/04/2017,"1,012.50 "
http://statistics.data.gov.uk/id/local-authority-district/23UB,Cheltenham Borough Council,Cheltenham Depot,14051841,60011679,Ubico Limited,R2700-ADB103,Contract Cleaning,07/04/2017,766.61 
http://statistics.data.gov.uk/id/local-authority-district/23UB,Cheltenham Borough Council,Supervision and Management,14052162,6001328X,Ubico Limited,R2071-HRA110,Open Spaces and Grassed Areas,07/04/2017,"26,448.00 "
http://statistics.data.gov.uk/id/local-authority-district/23UB,Cheltenham Borough Council,Car Parks - Off Street Operations,14052162,6001328X,Ubico Limited,R5001-CPK001,TPP - Major External Contractors,07/04/2017,"7,767.00 "
http://statistics.data.gov.uk/id/local-authority-district/23UB,Cheltenham Borough Council,Highways Agency Verges & Trees,14052162,6001328X,Ubico Limited,R5001-ESR001,TPP - Major External Contractors,07/04/2017,"25,141.00 "
http://statistics.data.gov.uk/id/local-authority-district/23UB,Cheltenham Borough Council,Arle Road Nursery Operations,14052162,6001328X,Ubico Limited,R5001-OPS101,TPP - Major External Contractors,07/04/2017,"14,249.00 "
http://statistics.data.gov.uk/id/local-authority-district/23UB,Cheltenham Borough Council,Parks & Gardens Operations,14052162,6001328X,Ubico Limited,R5001-OPS001,TPP - Major External Contractors,07/04/2017,"43,539.00 "
http://statistics.data.gov.uk/id/local-authority-district/23UB,Cheltenham Borough Council,Sports & Open Spaces Operations,14052162,6001328X,Ubico Limited,R5001-OPS002,TPP - Major External Contractors,07/04/2017,"52,798.00 "
http://statistics.data.gov.uk/id/local-authority-district/23UB,Cheltenham Borough Council,Bulking Facility,14052162,6001328X,Ubico Limited,R5001-RYC008,TPP - Major External Contractors,07/04/2017,"29,404.00 "
http://statistics.data.gov.uk/id/local-authority-district/23UB,Cheltenham Borough Council,Recycling Centres,14052162,6001328X,Ubico Limited,R5001-RYC004,TPP - Major External Contractors,07/04/2017,"39,142.00 "
http://statistics.data.gov.uk/id/local-authority-district/23UB,Cheltenham Borough Council,Recycling Collection Schemes,14052162,6001328X,Ubico Limited,R5001-RYC006,TPP - Major External Contractors,07/04/2017,"129,440.00 "
http://statistics.data.gov.uk/id/local-authority-district/23UB,Cheltenham Borough Council,Bring Sites,14052162,6001328X,Ubico Limited,R5001-RYC005,TPP - Major External Contractors,07/04/2017,"13,481.00 "
http://statistics.data.gov.uk/id/local-authority-district/23UB,Cheltenham Borough Council,Public Conveniences,14052162,6001328X,Ubico Limited,R5001-REG019,TPP - Major External Contractors,07/04/2017,"6,305.00 "
http://statistics.data.gov.uk/id/local-authority-district/23UB,Cheltenham Borough Council,Green Waste,14052162,6001328X,Ubico Limited,R5001-RYC002,TPP - Major External Contractors,07/04/2017,"24,758.00 "
http://statistics.data.gov.uk/id/local-authority-district/23UB,Cheltenham Borough Council,Street Cleaning,14052162,6001328X,Ubico Limited,R5001-STC001,TPP - Major External Contractors,07/04/2017,"66,390.00 "
http://statistics.data.gov.uk/id/local-authority-district/23UB,Cheltenham Borough Council,Trade Waste,14052162,6001328X,Ubico Limited,R5001-TRW001,TPP - Major External Contractors,07/04/2017,"47,000.00 "
http://statistics.data.gov.uk/id/local-authority-district/23UB,Cheltenham Borough Council,Household Waste,14052162,6001328X,Ubico Limited,R5001-WST001,TPP - Major External Contractors,07/04/2017,"116,142.00 "
http://statistics.data.gov.uk/id/local-authority-district/23UB,Cheltenham Borough Council,Household Waste,14052408,60013477,Ubico Limited,R5001-WST001,TPP - Major External Contractors,21/04/2017,"116,142.00 "
http://statistics.data.gov.uk/id/local-authority-district/23UB,Cheltenham Borough Council,Trade Waste,14052408,60013477,Ubico Limited,R5001-TRW001,TPP - Major External Contractors,21/04/2017,"47,000.00 "
http://statistics.data.gov.uk/id/local-authority-district/23UB,Cheltenham Borough Council,Street Cleaning,14052408,60013477,Ubico Limited,R5001-STC001,TPP - Major External Contractors,21/04/2017,"66,390.00 "
http://statistics.data.gov.uk/id/local-authority-district/23UB,Cheltenham Borough Council,Supervision and Management,14052408,60013477,Ubico Limited,R2071-HRA110,Open Spaces and Grassed Areas,21/04/2017,"26,448.00 "
http://statistics.data.gov.uk/id/local-authority-district/23UB,Cheltenham Borough Council,Highways Agency Verges & Trees,14052408,60013477,Ubico Limited,R5001-ESR001,TPP - Major External Contractors,21/04/2017,"25,141.00 "
http://statistics.data.gov.uk/id/local-authority-district/23UB,Cheltenham Borough Council,Public Conveniences,14052408,60013477,Ubico Limited,R5001-REG019,TPP - Major External Contractors,21/04/2017,"6,305.00 "
http://statistics.data.gov.uk/id/local-authority-district/23UB,Cheltenham Borough Council,Green Waste,14052408,60013477,Ubico Limited,R5001-RYC002,TPP - Major External Contractors,21/04/2017,"24,758.00 "
http://statistics.data.gov.uk/id/local-authority-district/23UB,Cheltenham Borough Council,Recycling Centres,14052408,60013477,Ubico Limited,R5001-RYC004,TPP - Major External Contractors,21/04/2017,"39,142.00 "
http://statistics.data.gov.uk/id/local-authority-district/23UB,Cheltenham Borough Council,Recycling Collection Schemes,14052408,60013477,Ubico Limited,R5001-RYC006,TPP - Major External Contractors,21/04/2017,"129,440.00 "
http://statistics.data.gov.uk/id/local-authority-district/23UB,Cheltenham Borough Council,Bring Sites,14052408,60013477,Ubico Limited,R5001-RYC005,TPP - Major External Contractors,21/04/2017,"13,481.00 "
http://statistics.data.gov.uk/id/local-authority-district/23UB,Cheltenham Borough Council,Bulking Facility,14052408,60013477,Ubico Limited,R5001-RYC008,TPP - Major External Contractors,21/04/2017,"29,404.00 "
http://statistics.data.gov.uk/id/local-authority-district/23UB,Cheltenham Borough Council,Parks & Gardens Operations,14052408,60013477,Ubico Limited,R5001-OPS001,TPP - Major External Contractors,21/04/2017,"43,539.00 "
http://statistics.data.gov.uk/id/local-authority-district/23UB,Cheltenham Borough Council,Sports & Open Spaces Operations,14052408,60013477,Ubico Limited,R5001-OPS002,TPP - Major External Contractors,21/04/2017,"52,798.00 "
http://statistics.data.gov.uk/id/local-authority-district/23UB,Cheltenham Borough Council,Arle Road Nursery Operations,14052408,60013477,Ubico Limited,R5001-OPS101,TPP - Major External Contractors,21/04/2017,"14,249.00 "
http://statistics.data.gov.uk/id/local-authority-district/23UB,Cheltenham Borough Council,Car Parks - Off Street Operations,14052408,60013477,Ubico Limited,R5001-CPK001,TPP - Major External Contractors,21/04/2017,"7,767.00 "
http://statistics.data.gov.uk/id/local-authority-district/23UB,Cheltenham Borough Council,Car Parks - Off Street Operations,14052193,CHL00275,Verrus (UK) Limited (Pay By Phone),R4401-CPK001,Services - Fees and Charges,13/04/2017,"3,601.00 "
http://statistics.data.gov.uk/id/local-authority-district/23UB,Cheltenham Borough Council,Bulky Household Waste,14052115,17-Aug,Vision 21,R4401-WST004,Services - Fees and Charges,13/04/2017,"4,087.50 "
http://statistics.data.gov.uk/id/local-authority-district/23UB,Cheltenham Borough Council,ICT,14052239,UK10/042017/8218,Vodafone Limited,R4507-SUP005,Comms - Mobile Telephones,21/04/2017,"2,531.97 "
http://statistics.data.gov.uk/id/local-authority-district/23UB,Cheltenham Borough Council,Public Conveniences,14052548,10376,Wallgate Limited,R2079-REG019,Sanitary and Plumbing,28/04/2017,"2,690.00 "
http://statistics.data.gov.uk/id/local-authority-district/23UB,Cheltenham Borough Council,Corporate Management,14052051,33184305,West Oxfordshire District Council,R4409-COR001,Partnership Staff Fees,13/04/2017,"6,031.00 "
http://statistics.data.gov.uk/id/local-authority-district/23UB,Cheltenham Borough Council,Corporate Management,14052051,33184305,West Oxfordshire District Council,R4409-COR001,Partnership Staff Fees,13/04/2017,"4,100.00 "
http://statistics.data.gov.uk/id/local-authority-district/23UB,Cheltenham Borough Council,Crematorium Scheme: New Build,14052170,60000097,Willmott Dixon Construction Limited,C1100-CAP601,Construction,13/04/2017,"176,791.00 "
http://statistics.data.gov.uk/id/local-authority-district/23UB,Cheltenham Borough Council,Parks & Gardens Repairs & Maintenance,14052130,20024,GARDINERS,R2008-OPS121,R & M of Build - Reactive Repairs,28/04/2017,"3,773.32 "
http://statistics.data.gov.uk/id/local-authority-district/23UB,Cheltenham Borough Council,Rent Control,14052099,RENT REFUND (REDACTED),REDACTED,R9910-HRA900,Refund of Overpiad Rent,07/04/2017,649.39 
http://statistics.data.gov.uk/id/local-authority-district/23UB,Cheltenham Borough Council,Rent Control,14052385,RENT REFUND (REDACTED),REDACTED,R9910-HRA900,Refund of Overpiad Rent,21/04/2017,536.10 
http://statistics.data.gov.uk/id/local-authority-district/23UB,Cheltenham Borough Council,Rent Control,14052383,RENT REFUND (REDACTED),REDACTED,R9910-HRA900,Refund of Overpiad Rent,21/04/2017,583.58 
http://statistics.data.gov.uk/id/local-authority-district/23UB,Cheltenham Borough Council,Rent Control,14052382,RENT REFUND (REDACTED),REDACTED,R9910-HRA900,Refund of Overpiad Rent,21/04/2017,537.02 
http://statistics.data.gov.uk/id/local-authority-district/23UB,Cheltenham Borough Council,Building Control - Fee Earning Work,14052189,T14/00177/MHL,REDACTED,R9301-BUC001,Fees - Building Regulations,13/04/2017,618.75 
http://statistics.data.gov.uk/id/local-authority-district/23UB,Cheltenham Borough Council,Homelessness,14052379,REDACTED,SURELET,R6280-HOM001,Grants,21/04/2017,650.00 
http://statistics.data.gov.uk/id/local-authority-district/23UB,Cheltenham Borough Council,New Heating Installations,14052505,REDACTED,WALES & WEST UTILITIES LTD,C1107-CAH009,Building Works,28/04/2017,"1,046.00 "
http://statistics.data.gov.uk/id/local-authority-district/23UB,Cheltenham Borough Council,Income and Expenditure on Investment Properties and Changes in Their Fair Value,14052502,MJD/SM/15005/4928,WANSBROUGHS,R4964-FIE040,Insurance Excess,21/04/2017,637.00 
Bank Transactions,,,,,,,,,
http://statistics.data.gov.uk/id/local-authority-district/23UB,Cheltenham Borough Council,Cheltenham Municipal Offices,10022550,Bank Transactions,WME - FEB - MUNICIPAL OFFICES,R2100-ADB101,Electricity,12/04/2017,"2,980.39 "
http://statistics.data.gov.uk/id/local-authority-district/23UB,Cheltenham Borough Council,Cheltenham Municipal Offices,10022550,Bank Transactions,WME - FEB - MUNICIPAL OFFICES,R2101-ADB101,Gas,12/04/2017,"1,968.74 "
http://statistics.data.gov.uk/id/local-authority-district/23UB,Cheltenham Borough Council,Cheltenham Depot,10022550,Bank Transactions,WME - FEB - CENTRAL DEPOT - SWINDON ROAD,R2100-ADB103,Electricity,12/04/2017,"3,367.08 "
http://statistics.data.gov.uk/id/local-authority-district/23UB,Cheltenham Borough Council,Cheltenham Depot,10022550,Bank Transactions,WME - FEB - CENTRAL DEPOT,R2101-ADB103,Gas,12/04/2017,"2,639.65 "
http://statistics.data.gov.uk/id/local-authority-district/23UB,Cheltenham Borough Council,Cheltenham Depot,10022144,Bank Transactions,SEVERN TRENT WATER DD 4060021498 ENVIRONMENTAL MAINTENANCE,R2402-ADB103,Sewerage and Environmental Services,07/04/2017,"1,121.40 "
http://statistics.data.gov.uk/id/local-authority-district/23UB,Cheltenham Borough Council,"Cemetery, Crematorium and Churchyards",10022550,Bank Transactions,WME - FEB - CEMETERY & CREMATORIUM,R2100-CCM001,Electricity,12/04/2017,687.49 
http://statistics.data.gov.uk/id/local-authority-district/23UB,Cheltenham Borough Council,"Cemetery, Crematorium and Churchyards",10022556,Bank Transactions,WME - FEB - CEMETERY & CREMATORIUM,R2101-CCM001,Gas,18/04/2017,"2,508.40 "
http://statistics.data.gov.uk/id/local-authority-district/23UB,Cheltenham Borough Council,"Cemetery, Crematorium and Churchyards",10022665,Bank Transactions,SEVERN TRENT WATER DD,R2401-CCM001,Water Services - Metered,19/04/2017,"3,117.24 "
http://statistics.data.gov.uk/id/local-authority-district/23UB,Cheltenham Borough Council,"Cemetery, Crematorium and Churchyards",10022665,Bank Transactions,SEVERN TRENT WATER DD,R2402-CCM001,Sewerage and Environmental Services,19/04/2017,"2,920.36 "
http://statistics.data.gov.uk/id/local-authority-district/23UB,Cheltenham Borough Council,Treasury Management,10022605,Bank Transactions,CARDNET SVCCHG   1602,R4428-COR006,Services - credit card charges,18/04/2017,724.82 
http://statistics.data.gov.uk/id/local-authority-district/23UB,Cheltenham Borough Council,Treasury Management,10022605,Bank Transactions,CARDNET SVCCHG   1866,R4428-COR006,Services - credit card charges,18/04/2017,"1,764.18 "
http://statistics.data.gov.uk/id/local-authority-district/23UB,Cheltenham Borough Council,Treasury Management,10022605,Bank Transactions,CARDNET SVCCHG  500200738,R4428-COR006,Services - credit card charges,18/04/2017,"-2,313.39 "
http://statistics.data.gov.uk/id/local-authority-district/23UB,Cheltenham Borough Council,Treasury Management,10022609,Bank Transactions,CARDNET SVC CHG 00738,R4428-COR006,Services - credit card charges,18/04/2017,"4,626.78 "
http://statistics.data.gov.uk/id/local-authority-district/23UB,Cheltenham Borough Council,Car Parks - Off Street Operations,10022550,Bank Transactions,WME - FEB - CAR PARK - GROSVENOR TERRACE,R2100-CPK001,Electricity,12/04/2017,951.61 
http://statistics.data.gov.uk/id/local-authority-district/23UB,Cheltenham Borough Council,Car Parks - Off Street Operations,10022550,Bank Transactions,WME - FEB - CAR PARK - REGENT ARCADE,R2100-CPK001,Electricity,12/04/2017,545.63 
http://statistics.data.gov.uk/id/local-authority-district/23UB,Cheltenham Borough Council,Car Parks - Off Street Operations,10022424,Bank Transactions,S/LINE  J6387932  DD 11440015,R4428-CPK001,Services - credit card charges,20/04/2017,"2,826.93 "
http://statistics.data.gov.uk/id/local-authority-district/23UB,Cheltenham Borough Council,Car Parks - Off Street Operations,10022513,Bank Transactions,BRITISH TELECOM - MARCH INVOICE,R4515-CPK001,Comms - Telephone Call Charges,11/04/2017,"3,383.40 "
http://statistics.data.gov.uk/id/local-authority-district/23UB,Cheltenham Borough Council,Everyman Theatre,10022096,Bank Transactions,Everyman  Theatre - Grant for 2017/18,R6280-CUL108,Grants,10/04/2017,"195,050.00 "
http://statistics.data.gov.uk/id/local-authority-district/23UB,Cheltenham Borough Council,Playhouse Theatre,10022094,Bank Transactions,2017/18 Annual Grant - Cheltenham Playhouse Theatre,R6280-CUL109,Grants,10/04/2017,"65,700.00 "
http://statistics.data.gov.uk/id/local-authority-district/23UB,Cheltenham Borough Council,Town Hall Repairs & Maintenance,10022550,Bank Transactions,WME - FEB - CHELTENHAM TOWN HALL,R2100-CUL112,Electricity,12/04/2017,"2,816.29 "
http://statistics.data.gov.uk/id/local-authority-district/23UB,Cheltenham Borough Council,Town Hall Repairs & Maintenance,10022550,Bank Transactions,WME - FEB - CHELTENHAM TOWN HALL,R2101-CUL112,Gas,12/04/2017,"1,579.93 "
http://statistics.data.gov.uk/id/local-authority-district/23UB,Cheltenham Borough Council,Pittville Pump Room Repairs & Maintenance,10022550,Bank Transactions,WME - FEB - PITTVILLE PUMP ROOMS,R2100-CUL113,Electricity,12/04/2017,686.84 
http://statistics.data.gov.uk/id/local-authority-district/23UB,Cheltenham Borough Council,Pittville Pump Room Repairs & Maintenance,10022550,Bank Transactions,WME - FEB - PITTVILLE PUMP ROOMS,R2101-CUL113,Gas,12/04/2017,557.84 
http://statistics.data.gov.uk/id/local-authority-district/23UB,Cheltenham Borough Council,Art Gallery & Museum Repairs & Maintenance,10022550,Bank Transactions,WME - FEB - WILSON ART GALLERY & MUSEUM,R2100-CUL117,Electricity,12/04/2017,"4,805.10 "
http://statistics.data.gov.uk/id/local-authority-district/23UB,Cheltenham Borough Council,Art Gallery & Museum Repairs & Maintenance,10022556,Bank Transactions,WME - FEB - WILSON ART GALLERY & MUSEUM,R2101-CUL117,Gas,18/04/2017,"1,595.48 "
http://statistics.data.gov.uk/id/local-authority-district/23UB,Cheltenham Borough Council,Xmas in Cheltenham,10022531,Bank Transactions,NPOWER DD  H2260001,R2100-ECD101,Electricity,26/04/2017,947.43 
http://statistics.data.gov.uk/id/local-authority-district/23UB,Cheltenham Borough Council,Ubico Intercompany Account,10022513,Bank Transactions,BRITISH TELECOM - MARCH INVOICE -,R4515-HLD102,Comms - Telephone Call Charges,11/04/2017,746.87 
http://statistics.data.gov.uk/id/local-authority-district/23UB,Cheltenham Borough Council,Ubico Intercompany Account,10022513,Bank Transactions,BRITISH TELECOM - MARCH INVOICE - UBICO  FOSSE CROSS,R4515-HLD102,Comms - Telephone Call Charges,11/04/2017,533.40 
http://statistics.data.gov.uk/id/local-authority-district/23UB,Cheltenham Borough Council,Ubico Intercompany Account,10022513,Bank Transactions,BRITISH TELECOM - MARCH INVOICE - UBICO HEMPSTED,R4515-HLD102,Comms - Telephone Call Charges,11/04/2017,"4,188.40 "
http://statistics.data.gov.uk/id/local-authority-district/23UB,Cheltenham Borough Council,Cheltenham Trust Intercompany Account,10022513,Bank Transactions,BRITISH TELECOM - MARCH INVOICE,R4515-HLD170,Comms - Telephone Call Charges,11/04/2017,"1,342.33 "
http://statistics.data.gov.uk/id/local-authority-district/23UB,Cheltenham Borough Council,Supervision and Management,10022550,Bank Transactions,WME - FEB - COOPERS COURT,R2101-HRA110,Gas,12/04/2017,853.43 
http://statistics.data.gov.uk/id/local-authority-district/23UB,Cheltenham Borough Council,Supervision and Management,10022550,Bank Transactions,WME - FEB - GILBERT WARD COURT,R2101-HRA110,Gas,12/04/2017,570.48 
http://statistics.data.gov.uk/id/local-authority-district/23UB,Cheltenham Borough Council,Supervision and Management,10022550,Bank Transactions,WME - FEB - GOLDFOOT HOUSE,R2101-HRA110,Gas,12/04/2017,836.96 
http://statistics.data.gov.uk/id/local-authority-district/23UB,Cheltenham Borough Council,Supervision and Management,10022550,Bank Transactions,WME - FEB - POPES CLOSE,R2101-HRA110,Gas,12/04/2017,693.46 
http://statistics.data.gov.uk/id/local-authority-district/23UB,Cheltenham Borough Council,Supervision and Management,10022550,Bank Transactions,WME - FEB - WALLACE HOUSE,R2101-HRA110,Gas,12/04/2017,780.04 
http://statistics.data.gov.uk/id/local-authority-district/23UB,Cheltenham Borough Council,Supervision and Management,10022513,Bank Transactions,BRITISH TELECOM - MARCH INVOICE -,R4515-HRA110,Comms - Telephone Call Charges,11/04/2017,"2,821.59 "
http://statistics.data.gov.uk/id/local-authority-district/23UB,Cheltenham Borough Council,Council Tax Collection,10022215,Bank Transactions,ROYAL MAIL SW & DW,R4521-LTC001,Postages - franking machine,12/04/2017,"14,353.32 "
http://statistics.data.gov.uk/id/local-authority-district/23UB,Cheltenham Borough Council,Parish Council Precepts,10022204,Bank Transactions,Swindon Village CTSG 17/18,R6280-OOE200,Grants,18/04/2017,618.18 
http://statistics.data.gov.uk/id/local-authority-district/23UB,Cheltenham Borough Council,Parish Council Tax Support Grant,10022199,Bank Transactions,Charlton Kings Parish Council CTSG 17/18,R6280-OOE210,Grants,18/04/2017,"2,636.42 "
http://statistics.data.gov.uk/id/local-authority-district/23UB,Cheltenham Borough Council,Parish Council Tax Support Grant,10022200,Bank Transactions,Leckhampton with Warden Hiill PC - 2017/18 CTSG,R6280-OOE210,Grants,18/04/2017,"2,087.77 "
http://statistics.data.gov.uk/id/local-authority-district/23UB,Cheltenham Borough Council,Parish Council Tax Support Grant,10022201,Bank Transactions,Prestbury PC - 17/18 CTSG,R6280-OOE210,Grants,18/04/2017,"3,431.32 "
http://statistics.data.gov.uk/id/local-authority-district/23UB,Cheltenham Borough Council,Parish Council Tax Support Grant,10022207,Bank Transactions,Up Hatherley PC CTSG 17/18,R6280-OOE210,Grants,18/04/2017,"1,494.66 "
http://statistics.data.gov.uk/id/local-authority-district/23UB,Cheltenham Borough Council,Parks & Gardens Operations,10022573,Bank Transactions,Wansborough Solicitors Singer V CBC Settlement JO/15005/5004,R4964-OPS001,Insurance Excess,28/04/2017,"14,000.00 "
http://statistics.data.gov.uk/id/local-authority-district/23UB,Cheltenham Borough Council,Arle Road Nursery Operations,10022556,Bank Transactions,WME - FEB - ARLE NURSERIES,R2101-OPS101,Gas,18/04/2017,531.47 
http://statistics.data.gov.uk/id/local-authority-district/23UB,Cheltenham Borough Council,Recreation Centre Operations,10022550,Bank Transactions,WME - FEB - PRINCE OF WALES STADIUM,R2100-REC101,Electricity,12/04/2017,"1,765.92 "
http://statistics.data.gov.uk/id/local-authority-district/23UB,Cheltenham Borough Council,Recreation Centre Repairs & Maintenance,10022550,Bank Transactions,WME - FEB - LEISURE CENTRE - TOMMY TAYLORS LANE,R2100-REC111,Electricity,12/04/2017,"5,934.16 "
http://statistics.data.gov.uk/id/local-authority-district/23UB,Cheltenham Borough Council,Recreation Centre Repairs & Maintenance,10022550,Bank Transactions,WME - FEB - LEISURE CENTRE - TOMMY TAYLORS LANE,R2101-REC111,Gas,12/04/2017,534.54 
http://statistics.data.gov.uk/id/local-authority-district/23UB,Cheltenham Borough Council,Recreation Centre Repairs & Maintenance,10022556,Bank Transactions,WME - FEB - LEISURE CENTRE - TOMMY TAYLORS LANE,R2101-REC111,Gas,18/04/2017,"7,935.29 "
http://statistics.data.gov.uk/id/local-authority-district/23UB,Cheltenham Borough Council,Recreation Centre Repairs & Maintenance,10022598,Bank Transactions,SEVERN TRENT WATER - REC CENTRE TOMMY TAYLORS LANE,R2401-REC111,Water Services - Metered,27/04/2017,"1,854.69 "
http://statistics.data.gov.uk/id/local-authority-district/23UB,Cheltenham Borough Council,Recreation Centre Repairs & Maintenance,10022663,Bank Transactions,SEVERN TRENT WATER DD,R2401-REC111,Water Services - Metered,04/04/2017,"2,048.42 "
http://statistics.data.gov.uk/id/local-authority-district/23UB,Cheltenham Borough Council,ICT,10022513,Bank Transactions,BRITISH TELECOM - MARCH INVOICE -,R4515-SUP005,Comms - Telephone Call Charges,11/04/2017,720.00 
http://statistics.data.gov.uk/id/local-authority-district/23UB,Cheltenham Borough Council,Telephones,10022109,Bank Transactions,VIRGIN MEDIA PYMNTS DD 506761601005,R4436-SUP006,CCTV Line Rental,03/04/2017,"2,163.43 "
http://statistics.data.gov.uk/id/local-authority-district/23UB,Cheltenham Borough Council,Telephones,10022109,Bank Transactions,VIRGIN MEDIA PYMNTS DD 506761601005,R4515-SUP006,Comms - Telephone Call Charges,03/04/2017,"1,389.04 "
http://statistics.data.gov.uk/id/local-authority-district/23UB,Cheltenham Borough Council,Telephones,10022109,Bank Transactions,VIRGIN MEDIA PYMNTS DD 510828101501,R4515-SUP006,Comms - Telephone Call Charges,03/04/2017,694.50 
Procurement Cards,,,,,,,,,
http://statistics.data.gov.uk/id/local-authority-district/23UB,Cheltenham Borough Council,Economic Development,10022529,Procurement Cards,BUS CHG CARD - FEB - REDACTED - LINKEDIN,R4400-ECD001,Services - Professional Fees,21/02/2017,739.96 
